Cogmind - Beta 14 @@@ ROGUE MODE // 2024.10.24 @ 18:22:18 Player: Amberulez Result: Self-destructed Performance ------------- Evolutions (2) 1000 Regions Visited (4) 800 Robots Destroyed (43) 215 Value Destroyed (1283) 1283 Prototype IDs (2) 40 Alien Tech Used (0) 0 Bonus (0) 0 TOTAL SCORE: 3338 Bonus ------- None Cogmind --------- Core Integrity 522/550 Matter 270/300 Energy 290/290 System Corruption 0% Temperature Cool (0) Movement Treading (260) Ox1 Location -8/Materials Parts ------- > --- POWER (1) -------- Improved Deuterium Engine > --- PROPULSION (4) --- Spiked Treads Spiked Treads > --- UTILITY (4) ------ Medium Storage Unit Makeshift Light Armor Plating Scrap Shield > --- WEAPON (2) ------- Subdweller Beam Cannon Slug Cannon > --- INVENTORY (10) --- Improved Deuterium Engine Disposable Heat Sink Large Matter Pod (150) High-capacity Matter Pod (200) Battle Cannon Grenade Launcher Makeshift Sword Peak State ------------ > --- POWER ------------ Improved Deuterium Engine > --- PROPULSION ------- Spiked Treads Spiked Treads > --- UTILITY ---------- Medium Storage Unit Makeshift Light Armor Plating Scrap Shield > --- WEAPON ----------- Subdweller Beam Cannon Slug Cannon > --- INVENTORY -------- Improved Deuterium Engine Disposable Heat Sink Large Matter Pod High-capacity Matter Pod Battle Cannon Grenade Launcher Makeshift Sword Scrap Shield Fragment Scrap Shield Fragment Scrap Shield Fragment [Rating: 25] Favorites ----------- Power Light Nuclear Core Engine Light Ion Engine Power Core Light Nuclear Core Propulsion Light Treads Treads Light Treads Wheel Wheel Utility Medium Storage Unit Device Subdweller Optics Storage Medium Storage Unit Protection Makeshift Light Armor Plating Weapon Slug Cannon Energy Cannon Heavy Particle Cannon Ballistic Gun Light Assault Rifle Ballistic Cannon Slug Cannon Launcher Rocket Launcher Slashing Weapon Makeshift Sword Build | -11 -10 -10 -10 -8 ------- Run | Yrd Mat Min Sub Mat Slots Evolved 4 | . . . . 4 Power . | . . . . . Propulsion 2 | . . . . 2 Utility 2 | . . . . 2 Weapon . | . . . . . Parts Attached 40 | 6 8 2 22 2 Power 8 | 2 1 . 4 1 Engine 7 | 2 . . 4 1 Core 1 | . 1 . . . Reactor . | . . . . . Propulsion 10 | 2 1 . 7 . Treads 5 | 2 1 . 2 . Leg . | . . . . . Wheel 5 | . . . 5 . Hover . | . . . . . Flight . | . . . . . Utility 8 | 1 1 . 5 1 Device 3 | . . . 3 . Storage 3 | 1 1 . 1 . Processor . | . . . . . Hackware . | . . . . . Protection 2 | . . . 1 1 Artifact . | . . . . . Weapon 14 | 1 5 2 6 . Energy Gun . | . . . . . Energy Cannon 2 | . . 1 1 . Ballistic Gun 5 | 1 4 . . . Ballistic Cannon 2 | . . . 2 . Launcher 2 | . 1 1 . . Special Weapon . | . . . . . Impact Weapon . | . . . . . Slashing Weapon 3 | . . . 3 . Piercing Weapon . | . . . . . Special Melee Weapon . | . . . . . Unidentified Prototypes . | . . . . . Parts Lost 5 | . 1 . 4 . Power 2 | . . . 2 . Propulsion 2 | . 1 . 1 . Utility 1 | . . . 1 . Weapon . | . . . . . Highest Loss Streak 3 | . 1 . 3 . To Critical Strikes . | . . . . . Average Slot Usage (%) 96 | . 96 100 99 72 Engine 8 | . 11 . 11 9 Core 5 | . 2 14 2 . Treads 24 | . 27 28 22 18 Wheel 2 | . . . 5 . Device 1 | . . . 2 . Storage 19 | . 25 28 14 9 Protection 6 | . . . 10 18 Energy Cannon 8 | . . 13 8 9 Ballistic Gun 7 | . 27 4 . . Ballistic Cannon 5 | . . . 10 9 Launcher 3 | . . 10 2 . Slashing Weapon 2 | . . . 5 . Peak Build Rating 25 | 5 12 13 20 25 Average Rating 14 | 4 8 12 17 22 On Entrance 9 | . 5 12 13 17 Naked Turns . | . . . . . Heaviest Build 57 | 11 26 30 32 57 Greatest Support 40 | 40 40 40 40 40 Greatest Overweight (x) 9 | . 1 . 9 1 Average Overweight (x) . | . . . . 1 Largest Inventory Capacity 10 | 8 10 10 10 10 Average Capacity 9 | 7 9 10 10 10 Most Carried 10 | 7 10 10 10 10 Average Carried 9 | 3 7 9 9 8 Final Capacity 10 | 8 10 10 10 10 Final Carried 10 | 7 10 10 10 7 Class Distribution -------------------- 55% | Mutant 41% | Derelict-Mutant Dominant Class ---------------- Mutant | -10/Materials Mutant | -10/Mines Derelict-Mutant | -10/Subcaves Derelict-Mutant | -8/Materials Resources | -11 -10 -10 -10 -8 ----------- Run | Yrd Mat Min Sub Mat Matter Collected 1362 | 247 375 370 296 74 Remotely . | . . . . . Salvage Created 1443 | . 599 43 610 191 Parts 97 | . 42 7 39 9 Haulers Intercepted 1 | . 1 . . . Recyclers Shooed . | . . . . . Parts Field Recycled . | . . . . . Retrieved Matter . | . . . . . Parts Self-Destructed 19 | . . . 19 . Prevented . | . . . . . Kills | -11 -10 -10 -10 -8 ------- Run | Yrd Mat Min Sub Mat Combat Hostiles Destroyed 40 | . 15 6 14 5 Guns 13 | . 13 . . . Cannons 18 | . . 1 12 5 AOE 7 | . 2 5 . . Classes Destroyed 7 | . 5 . 1 1 Worker 1 | . 1 . . . Hauler 1 | . 1 . . . Recycler 1 | . 1 . . . Swarmer 12 | . 6 6 . . Grunt 14 | . 9 . 2 3 Sentry 2 | . . . . 2 Subdweller 12 | . . . 12 . Best Kill Streak 4 | . 4 3 2 3 Combat Bots Only 3 | . 3 3 2 3 Max Kills in Single Turn 2 | . 1 2 1 1 Gunslinging . | . . . . . Exploded 2 | . 1 2 . . Melee . | . . . . . Uniques/NPCs Destroyed . | . . . . . Combat | -11 -10 -10 -10 -8 -------- Run | Yrd Mat Min Sub Mat Hostile Shots Fired 194 | . 70 33 63 28 Missed 62 | . 17 11 25 9 Damage Taken 1714 | . 529 236 656 293 Core 254 | . 68 57 101 28 Absorbed by Shields . | . . . . . Core Remaining (%) 54 | 100 . . 9 . Volleys Fired 115 | . 51 7 43 14 Largest 2 | . 2 2 2 2 Hottest 128 | . 50 108 128 128 Shots Fired 198 | . 102 12 56 28 Gun 99 | . 99 . . . Cannon 91 | . . 7 56 28 Launcher 8 | . 3 5 . . Special . | . . . . . Kinetic 126 | . 99 . 13 14 Thermal 64 | . . 7 43 14 Explosive 8 | . 3 5 . . Electromagnetic . | . . . . . Robot Hit Streak 14 | . 9 3 14 6 Robot Miss Streak 5 | . 5 2 1 4 Penetration Max . | . . . . . Secondary Targets 1 | . 1 . . . Max Gunslinging Chain 1 | . 1 . . . Shots Hit Robots 130 | . 66 4 44 16 Core Hits 55 | . 33 4 12 6 Critical Kills 2 | . . . 2 . Critical Parts Destroyed 1 | . . . . 1 Critical Strikes 3 | . . . 2 1 Meltdown 2 | . . . 2 . Destroy 1 | . . . . 1 Melee Attacks 8 | . . . 8 . Impact . | . . . . . Slashing 8 | . . . 8 . Piercing . | . . . . . Sneak Attacks 1 | . . . 1 . Combat Hostiles . | . . . . . Follow-up Attacks . | . . . . . Damage Inflicted 2932 | 1 849 477 1099 506 Guns 668 | . 668 . . . Cannons 1686 | . . 81 1099 506 Explosions 504 | . 177 327 . . Melee . | . . . . . Ramming 74 | 1 4 69 . . Kinetic 1036 | . 668 . 109 259 Thermal 1318 | . . 81 990 247 Explosive 504 | . 177 327 . . Electromagnetic . | . . . . . Impact . | . . . . . Slashing . | . . . . . Piercing . | . . . . . Highest Corruption . | . . . . . Average Corruption . | . . . . . Corruption Purged . | . . . . . Corruption Blocked . | . . . . . Overload Shots . | . . . . . Overflow Damage 61 | . . 61 . . Projectiles 7 | . . 7 . . Explosions 53 | . . 53 . . Melee 1 | . . 1 . . Knockbacks 4 | . . 1 1 2 Impact 1 | . . 1 . . Kinetic 3 | . . . 1 2 Secondary . | . . . . . Self-Inflicted Damage 27 | . . 27 . . Shots 3 | . . 3 . . Rammed 12 | 3 1 8 . . Targets Rammed 12 | 3 1 8 . . Kicked . | . . . . . Crushed . | . . . . . Highest Temperature 414 | . 29 168 271 414 Average Temperature 93 | . 8 69 41 185 Received Heat Transfer 873 | . 195 36 444 198 Effects 2 | . . . . 2 Shutdowns 1 | . . . . 1 Energy Bleed 1 | . . . . 1 Siege Activations . | . . . . . Robots Corrupted . | . . . . . Combat Hostiles . | . . . . . Parts Fried . | . . . . . Impact Corruptions 1 | . . 1 . . Robots Melted 2 | . . . 2 . Combat Hostiles 2 | . . . 2 . Parts Melted 3 | . . . 3 . Heat Transferred 1850 | . . 111 1406 333 Parts Sabotaged . | . . . . . Parts Stolen . | . . . . . Parts Stripped . | . . . . . Power Chain Reactions . | . . . . . Alert | -11 -10 -10 -10 -8 ------- Run | Yrd Mat Min Sub Mat Peak Influence 305 | . 305 112 . 149 Initial 46 | . . 46 . . Average 63 | . 89 34 . 92 Maximum Alert Level 1 | . 1 . . . Low Security (%) 97 | 100 93 100 . 100 Level 1 2 | . 6 . . . Level 2 . | . . . . . Level 3 . | . . . . . Level 4 . | . . . . . Level 5 . | . . . . . High Security . | . . . . . Max Security . | . . . . . Squads Dispatched 4 | . 3 . . 1 Investigation 3 | . 2 . . 1 Extermination . | . . . . . Reinforcement 1 | . 1 . . . Assault . | . . . . . Garrison . | . . . . . Intercept . | . . . . . Searches Triggered . | . . . . . Construction Impeded . | . . . . . Haulers Reinforced . | . . . . . Active Scanning Responses . | . . . . . Cargo Convoy Interrupts . | . . . . . Stealth | -11 -10 -10 -10 -8 --------- Run | Yrd Mat Min Sub Mat Distress Signals 2 | . 1 . . 1 Communications Jammed . | . . . . . Distress Signals . | . . . . . Times Spotted 65 | . 29 8 18 10 Peak Tracking Total 6 | . 5 3 6 4 Tactical Retreats 3 | . 3 . . . Traps | -11 -10 -10 -10 -8 ------- Run | Yrd Mat Min Sub Mat Traps Triggered 2 | . 1 . 1 . Indirectly . | . . . . . Trap Hack Attempts . | . . . . . Triggered . | . . . . . Disarmed . | . . . . . Reprogrammed . | . . . . . Reused . | . . . . . Traps Extracted . | . . . . . Installed . | . . . . . Triggered 1 | . . 1 . . Machines | -11 -10 -10 -10 -8 ---------- Run | Yrd Mat Min Sub Mat Machines Disabled 3 | . . 1 . 2 Max in Single Turn 1 | . . 1 . 1 Machines Repaired . | . . . . . Machines Dismantled . | . . . . . Machines Sabotaged . | . . . . . Overloaded Fab Kills . | . . . . . Hacking | -11 -10 -10 -10 -8 --------- Run | Yrd Mat Min Sub Mat Machines Accessed 8 | . 3 1 1 3 Terminals 6 | . 3 . . 3 Fabricators . | . . . . . Repair Stations . | . . . . . Recycling Units . | . . . . . Scanalyzers . | . . . . . Garrison Access . | . . . . . Total Hacks 20 | . 5 1 5 9 Successful 10 | . 3 1 5 1 Failed 10 | . 2 . . 8 Catastrophic 1 | . . . . 1 Database Lockouts . | . . . . . Manual 12 | . 4 . . 8 Terminals 14 | . 5 . . 9 Fabricators . | . . . . . Repair Stations . | . . . . . Recycling Units . | . . . . . Scanalyzers . | . . . . . Garrison Access . | . . . . . Terminal Hacks 10 | . 3 1 5 1 Record 5 | . . . 5 . Robot Analysis 2 | . 2 . . . Prototype ID Bank 1 | . 1 . . . Open Door 1 | . . 1 . . Branch Access Points 1 | . . . . 1 Fabricator Hacks . | . . . . . Repair Station Hacks . | . . . . . Recycling Unit Hacks . | . . . . . Scanalyzer . | . . . . . Garrison Access Hacks . | . . . . . Unauthorized Hacks . | . . . . . Terminals . | . . . . . Fabricators . | . . . . . Repair Stations . | . . . . . Recycling Units . | . . . . . Scanalyzers . | . . . . . Garrison Access . | . . . . . Data Cores Recovered . | . . . . . Used . | . . . . . Hacking Detections 6 | . 3 . . 3 Full Trace Events 2 | . 1 . . 1 Feedback Events . | . . . . . Feedback Blocked . | . . . . . Robot Schematics Acquired . | . . . . . Robots Built . | . . . . . Authchips . | . . . . . Time . | . . . . . Total Robot Build Rating . | . . . . . Part Schematics Acquired . | . . . . . Parts Built . | . . . . . Authchips . | . . . . . Time . | . . . . . Total Part Build Rating . | . . . . . Parts Repaired . | . . . . . Time . | . . . . . Parts Recycled . | . . . . . Recycled Matter . | . . . . . Retrieved Matter . | . . . . . Retrieved Components . | . . . . . Parts Scanalyzed . | . . . . . Part Schematics Acquired . | . . . . . Parts Damaged . | . . . . . Bothacking | -11 -10 -10 -10 -8 ------------ Run | Yrd Mat Min Sub Mat Used RIF Installer . | . . . . . Robots Hacked . | . . . . . Non-combat . | . . . . . Combat . | . . . . . Robot Hacks Applied . | . . . . . Relay Couplers Released . | . . . . . Fabnet Peak Effective % . | . . . . . Robots Rewired . | . . . . . Allies Hacked . | . . . . . Hacks Repelled . | . . . . . Allies | -11 -10 -10 -10 -8 -------- Run | Yrd Mat Min Sub Mat Total Allies . | . . . . . Largest Group . | . . . . . Highest-Rated Group . | . . . . . Highest-Rated Ally . | . . . . . Total Orders . | . . . . . Ally Attacks . | . . . . . Total Damage . | . . . . . Kills . | . . . . . Allies Corrupted . | . . . . . Allies Melted . | . . . . . Intel | -11 -10 -10 -10 -8 ------- Run | Yrd Mat Min Sub Mat Robot Analysis Total 2 | . 2 . . . Derelict Logs Recovered 4 | . . 2 2 . Drone Launches . | . . . . . Drone Recoveries . | . . . . . Exploration | -11 -10 -10 -10 -8 ------------- Run | Yrd Mat Min Sub Mat Turns Passed 7045 | 118 1569 1750 3067 541 Spaces Moved 3867 | 64 695 986 1944 178 Core 4 | 3 . . 1 . Treads 3358 | 61 695 986 1438 178 Legs . | . . . . . Wheels 505 | . . . 505 . Hover . | . . . . . Flight . | . . . . . Fastest Speed 50 | 50 160 160 90 260 Average Speed 157 | 154 162 160 145 260 Slowest Speed 500 | 160 240 160 500 260 Overloaded Moves . | . . . . . Propulsion Burnouts . | . . . . . Robots Hopped . | . . . . . Cave-ins Triggered . | . . . . . Exploration Rate (%) 52 | 5 60 99 78 18 Regions Visited 4 Branch Regions 2 Pre-discovered Areas 2 | . . . 2 . Known Exits Taken . | . . . . . Unknown Exits Taken 4 | 1 1 1 1 . Scrap Searched 10 | . . 2 8 . Spaces Dug . | . . . . . Terrain Destroyed 84 | . 6 67 7 4 Melee . | . . . . . Projectile 15 | . . 4 7 4 AOE 69 | . 6 63 . . Terrain Rammed . | . . . . . Walls Destroyed . | . . . . . Machines Disabled . | . . . . . Actions | -11 -10 -10 -10 -8 --------- Run | Yrd Mat Min Sub Mat Total 4630 | 78 1047 1144 2132 229 Wait 509 | . 276 133 74 26 Move 3863 | 63 694 985 1943 178 Hop . | . . . . . Pick Up 36 | 6 9 4 15 2 Fast Attach 20 | 5 3 1 11 . Attach 5 | . 1 . 3 1 Detach 3 | . . . 3 . Swap 15 | 1 4 1 8 1 Drop 41 | . 8 5 24 4 Fire 115 | . 51 7 43 14 Melee 8 | . . . 8 . Ram . | . . . . . Kick . | . . . . . Crush 12 | 3 1 8 . . Escape Stasis . | . . . . . Rewire . | . . . . . Trap . | . . . . . Miscellaneous 3 | . . . . 3 Route ------- -11/Scrapyard -10/Materials (discovered 4 exits: [*Mat x2] / *Min / *Sub) -10/Mines (discovered 3 exits: [*Mat x2] / *Sub) -10/Subcaves (discovered 2 exits: *Mat x2) -8/Materials History --------- Turn | Location | Event 48 | -11/Scrapyard | Discovered new exit (range 14) 119 | -11/Scrapyard | Entered Materials 311 | -10/Materials | Build established: Mutant 404 | -10/Materials | Discovered new exit (range 12) 999 | -10/Materials | Discovered new exit (range 5) 1474 | -10/Materials | Discovered new exit (range 8) 1659 | -10/Materials | Discovered new exit (range 16) 1688 | -10/Materials | Entered Mines 1696 | -10/Mines | Learned Materials terminal intel 1729 | -10/Mines | Met a Derelict who couldn't figure out how to use a Trap Extractor 1790 | -10/Mines | Discovered new exit (range 5) 1971 | -10/Mines | Learned Materials stockpile data 2083 | -10/Mines | Discovered new exit (range 9) 2096 | -10/Mines | Received a Rocket Launcher from a helpful Derelict 3422 | -10/Mines | Discovered new exit (range 6) 3438 | -10/Mines | Entered Subcaves 3656 | -10/Subcaves | Visited Clippyterm 3659 | -10/Subcaves | Learned location of Deep Caves (-7) 3659 | -10/Subcaves | Learned Research security intel 3745 | -10/Subcaves | Shifting Twisted Machinery released Sub. Optics 3749 | -10/Subcaves | Shifting Twisted Machinery released Mak. Axe 3944 | -10/Subcaves | Core integrity fell below 50% 4014 | -10/Subcaves | Shifting Twisted Machinery released Shrapnel Trap 4018 | -10/Subcaves | Shifting Twisted Machinery released Piercing Trap 4052 | -10/Subcaves | Core integrity fell below 20% 4116 | -10/Subcaves | Lost 3 parts (2p1n) 4269 | -10/Subcaves | Shifting Twisted Machinery released Battle Cannon 4279 | -10/Subcaves | Shifting Twisted Machinery released Sub. Beam Cannon 4315 | -10/Subcaves | Learned location of Zion (-7) 4315 | -10/Subcaves | Met a Zionite searching for "candidates" 4396 | -10/Subcaves | Build established: Derelict-Mutant 4414 | -10/Subcaves | Discovered new exit (range 13) 5295 | -10/Subcaves | Learned Materials garrison access intel 5643 | -10/Subcaves | Disturbed a concealed Subdweller 5814 | -10/Subcaves | Learned Materials trap positions 6491 | -10/Subcaves | Discovered new exit (range 10) 6505 | -10/Subcaves | Entered Materials 6505 | -8/Materials | Evolved 4 slots: Propulsion x2, Utility x2 6506 | -8/Materials | Loaded intel: 10 trap records 6508 | -8/Materials | Loaded intel: 12 terminal locations 6509 | -8/Materials | Loaded intel: 1 garrison access location 7046 | -8/Materials | Self-destructed Last Messages --------------- 06894_ Scrap Shield Fragment affixed to Scrap Shield (+49). 06896_ Dropped Scrap Shield Fragment. 06896_ Scrap Shield Fragment affixed to Scrap Shield (+48). 06897_ Dropped Scrap Shield Fragment. 06898_ Scrap Shield Fragment affixed to Scrap Shield (+47). 06909_ Connecting with Terminal... 06962_ Critical hit (Burn: +37). 06975_ Slug penetrates Y-45 Defender. 06975_ Y-45 Defender destroyed. 06994_ R-06 Scavenger collects Lgt. Armor Plating. 06997_ R-06 Scavenger collects Hvy. Assault Rifle. 07001_ R-06 Scavenger collects Lgt. Treads. 07017_ Connecting with Terminal... >>Access(Branch) No branch access points found. Map ----- +----------------------------------------------------+ | ?????????????????????????????????????????? | | ?????????????????????????????????????????? | | ?????????????????????????????????????????? | | ?????????????????????????????????????????? | | ?????????????????????????????????????????? | | ?????????????????????????????????????????? | | ?????????????????????????????????????????? | | ?????????????????????????????????????????? | | ?????????????????????????????????????????? | | ??"T"????????????????????????????????????? | | ?????????????????????????????????????????? | | ?????????????????????????????????????????? | | ?????????????????????????????????????????? | | ?????????????????????????????????????????? | | ?????????????????????????????????????????? | | ?????????? ?????????????????????????????? | | ?????????# #######+##???????????????????? | | ?????????# # #???????????????????? | | ?????????# # #???????????????????? | | ?????????# # #???????????????????? | | ?????????# # #???????????????????? | | ?????????# # #???????????????????? | | ?????????+ # k #???????????????????? | | ?????????# # #???????????????????? | | ???####??# # #???????????????????? | | ???? ?# # @ #???????????????????? | | ????? # #####/######## ???????????? | | ???????" + == ????????? | | ?????????# ????????? | | ?????????# T ????????? | | ?????????+ = ?????????? | | ?#######?# ######### """?????????? | | ?? ?# """ #???????? """ ???????? | | ?? """ ?# """ +???????# """ ##### | | ??"""" ## """ #???????# | | ??"""""!"% #???????# | | ??"""""%+ +???????# | | ? """ !#= #???????# ############ | | # # ##+#+###?????# ## ## | | # = ! ?# # ??????# ##[ ##"" | | # ?# # ???????# ## """ ##"Y | | # ??# #? ???????# ## """ ##"" | | # ??# #? ????????# ## ## | | #### ?### ###+########## ## % ## ! | | ???##?# ###+#+###% | | ??????# %/% | | ??????###+#### ###### ## | | ??????# # #????# ##%% | | ??????# """ #== *!!#????# = #####+##### | | ??????# "T" #==* !!#????####### [ | +----------------------------------------------------+ Best States ------------- Heat Dissipation 31 Energy Generation 16 Energy Capacity 290 Matter Stores 450 Matter Capacity 450 Sight Range 21 Terrain Scan Density 10 Armor Coverage 900 Evasion (%) 41 Recoil Reduction 2 Item Schematics ----------------- None Robot Schematics ------------------ None Fabricated ------------ Nothing Alien Tech Used ----------------- None Achievements -------------- None Challenges ------------ None Game ------ Seed SiegeHackingStorm Manual? 0 Play Time 00:50:59 Cumulative 37.5 hours Start 2024.10.24 @ 17:23:28 End 2024.10.24 @ 18:22:18 Sessions 1 Manual Loads 0 Difficulty Rogue Special Mode None Game No. 45 Rogue 45 Adventurer 0 Explorer 0 Win Type - Total 1 Types 1/0/0/0/0/0/0/0/0 Lore% 10 Gallery% 29 Achievement% 28 Wizard Run 0 Options --------- Layout 1 ASCII 0 Keyboard 1 Movement Arrows Keybinds 0 Fullscreen 1 Font 24/Smallcaps Map View 50x35 Zoom Use 0% Tactical HUD 1 Map Filters NONE Filters NONE Steam 1 RUN: 1574cc6e-dadf-4829-8fa1-f2c8fd1036cc